lending/lending_fUSD_20250819
["ID","MTS","AMOUNT","RATE_DAILY","PERIOD"]
[380246530,1755627037563,-1064.99,0.00030136,120]
[380246531,1755627037590,-400.0,0.00030136,120]
[380246532,1755627037615,-2397.49,0.00030136,120]
[380246533,1755627037639,-400.0,0.00030136,120]
[380246534,1755627037663,-2407.7,0.00030136,120]
[380246535,1755627037687,-2411.62,0.00030136,120]
[380246536,1755627037711,-1126.12,0.00030136,120]
[380246537,1755627037734,-612.7,0.00030136,120]
[380246538,1755627037758,-400.0,0.00030136,120]
[380246539,1755627037783,-400.0,0.00030136,120]
[380246540,1755627037806,-400.0,0.00030136,120]
[380246541,1755627037830,-1550.88,0.00030136,120]
[380246542,1755627037855,-1248.84,0.00030136,120]
[380246543,1755627037890,-500.0,0.00030136,120]
[380246544,1755627037916,-500.0,0.00030136,120]
[380246545,1755627037942,-400.0,0.00030136,120]
[380246546,1755627037967,-665.97,0.00030136,120]
[380246547,1755627037993,-500.0,0.00030136,120]
[380246548,1755627038019,-500.0,0.00030136,120]
[380246549,1755627038044,-500.0,0.00030136,120]
[380246551,1755627038070,-500.0,0.00030136,120]
[380246553,1755627038095,-500.0,0.00030136,120]
[380246554,1755627038122,-587.87207627,0.00030136,120]
[380246555,1755627038147,-400.0,0.00030136,120]
[380246556,1755627038173,-2406.15,0.00030136,120]
[380246557,1755627038200,-400.0,0.00030136,120]
[380246559,1755627038225,-400.0,0.00030136,120]
[380246560,1755627038251,-738.18,0.00030136,120]
[380246561,1755627038278,-424.27,0.00030136,120]
[380246562,1755627038305,-2758.75,0.00030136,120]
[380246563,1755627038333,-495.49,0.00030136,120]
[380246564,1755627038358,-400.0,0.00030136,120]
[380246565,1755627038383,-675.32,0.00030136,120]
[380246566,1755627038408,-1402.13,0.00030136,120]
[380246567,1755627038440,-400.0,0.00030136,120]
[380246568,1755627038468,-646.63,0.00030136,120]
[380246569,1755627038496,-544.17,0.00030136,120]
[380246570,1755627038527,-1168.06,0.00030136,120]
[380246573,1755627038557,-400.0,0.00030136,120]
[380246577,1755627038585,-461.83,0.00030136,120]
[380246581,1755627038612,-400.0,0.00030136,120]
[380246585,1755627038640,-400.0,0.00030136,120]
[380246589,1755627038668,-1372.34,0.00030136,120]
[380246592,1755627038694,-400.0,0.00030136,120]
[380246596,1755627038721,-400.0,0.00030136,120]
[380246600,1755627038749,-400.0,0.00030136,120]
[380246604,1755627038775,-1712.85,0.00030136,120]
[380246608,1755627038803,-743.73,0.00030136,120]
[380246611,1755627038829,-2727.53,0.00030136,120]
[380246615,1755627038856,-1361.13,0.00030136,120]
[380246619,1755627038883,-499.16,0.00030136,120]
[380246623,1755627038911,-1234.3,0.00030136,120]
[380246627,1755627038939,-3333.52,0.00030136,120]
[380246631,1755627038968,-1646.38,0.00030136,120]
[380246635,1755627038997,-400.0,0.00030136,120]
[380246639,1755627039028,-400.0,0.00030136,120]
[380246643,1755627039057,-400.0,0.00030136,120]
[380246647,1755627039086,-696.39,0.00030136,120]
[380246651,1755627039115,-1062.5,0.00030136,120]
[380246655,1755627039144,-400.0,0.00030136,120]
[380246658,1755627039172,-2533.04,0.00030136,120]
[380246662,1755627039200,-1007.83,0.00030136,120]
[380246666,1755627039233,-1849.78,0.00030136,120]
[380246670,1755627039261,-400.0,0.00030136,120]
[380246674,1755627039288,-400.0,0.00030136,120]
[380246678,1755627039315,-2468.36,0.00030136,120]
[380246682,1755627039343,-425.12,0.00030136,120]
[380246684,1755627039370,-1416.37,0.00030136,120]
[380246685,1755627039398,-2360.31,0.00030136,120]
[380246686,1755627039424,-4102.14,0.00030136,120]
[380246687,1755627039450,-1938.96,0.00030136,120]
[380246688,1755627039478,-400.0,0.00030136,120]
[380246692,1755627039504,-466.78,0.00030136,120]
[380246696,1755627039534,-2805.82,0.00030136,120]
[380246700,1755627039560,-417.79,0.00030136,120]
[380246703,1755627039590,-400.0,0.00030136,120]
[380246707,1755627039618,-432.3,0.00030136,120]
[380246711,1755627039644,-675.62,0.00030136,120]
[380246715,1755627039671,-400.0,0.00030136,120]
[380246718,1755627039697,-1257.65,0.00030136,120]
[380246722,1755627039725,-501.54,0.00030136,120]
[380246726,1755627039751,-784.94,0.00030136,120]
[380246730,1755627039778,-497.15,0.00030136,120]
[380246734,1755627039804,-445.63,0.00030136,120]
[380246738,1755627039831,-727.18,0.00030136,120]
[380246741,1755627039857,-400.0,0.00030136,120]
[380246745,1755627039884,-400.0,0.00030136,120]
[380246749,1755627039911,-2859.68,0.00030136,120]
[380246817,1755627040529,-580.32,0.00030136,120]
[380246821,1755627040556,-742.71,0.00030136,120]
[380246825,1755627040583,-400.0,0.00030136,120]
[380246828,1755627040608,-400.0,0.00030136,120]
[380246832,1755627040633,-1978.79,0.00030136,120]
[380246836,1755627040658,-500.6,0.00030136,120]
[380246839,1755627040682,-400.0,0.00030136,120]
[380246843,1755627040708,-1864.42,0.00030136,120]
[380246847,1755627040732,-2541.06,0.00030136,120]
[380246850,1755627040757,-460.13,0.00030136,120]
[380246854,1755627040782,-3473.04,0.00030136,120]
[380246858,1755627040807,-4181.88,0.00030136,120]
[380246861,1755627040832,-2162.07,0.00030136,120]
[380246865,1755627040858,-400.0,0.00030136,120]
[380246868,1755627040883,-569.57,0.00030136,120]
[380246872,1755627040908,-400.0,0.00030136,120]
[380246876,1755627040937,-2284.34,0.00030136,120]
[380246879,1755627040961,-1731.18,0.00030136,120]
[380246883,1755627040986,-1506.9,0.00030136,120]
[380246886,1755627041012,-2924.06,0.00030136,120]
[380246890,1755627041041,-400.0,0.00030136,120]
[380246894,1755627041067,-400.0,0.00030136,120]
[380246898,1755627041094,-400.0,0.00030136,120]
[380246902,1755627041121,-584.84,0.00030136,120]
[380246906,1755627041147,-1269.53,0.00030136,120]
[380246910,1755627041174,-2672.59,0.00030136,120]
[380246913,1755627041200,-1753.54,0.00030136,120]
[380246917,1755627041229,-400.0,0.00030136,120]
[380246921,1755627041256,-400.0,0.00030136,120]
[380246925,1755627041284,-516.96,0.00030136,120]
[380246928,1755627041310,-2147.24,0.00030136,120]
[380246932,1755627041336,-1113.09,0.00030136,120]
[380246936,1755627041362,-1246.97,0.00030136,120]
[380246939,1755627041389,-353.585167,0.00030136,120]
[380246943,1755627041415,-757.28,0.00030136,120]
[380246946,1755627041440,-400.0,0.00030136,120]
[380246950,1755627041467,-2498.18,0.00030136,120]
[380246954,1755627041492,-400.0,0.00030136,120]
[380246957,1755627041518,-1076.22,0.00030136,120]
[380246961,1755627041547,-927.68,0.00030136,120]
[380246965,1755627041572,-1295.54,0.00030136,120]
[380246969,1755627041598,-244.030971,0.00030136,120]
[380246973,1755627041626,-1517.67,0.00030136,120]
[380246976,1755627041651,-400.0,0.00030136,120]
[380246980,1755627041675,-413.34,0.00030136,120]
[380246984,1755627041702,-2529.3,0.00030136,120]
[380246989,1755627041740,-501.30600578,0.00030136,120]
[380246993,1755627041768,-2094.74,0.00030136,120]
[380246997,1755627041794,-1382.46,0.00030136,120]
[380247000,1755627041821,-400.0,0.00030136,120]
[380247005,1755627041849,-617.05,0.00030136,120]
[380247008,1755627041877,-500.0,0.00030136,120]
[380247009,1755627041903,-400.0,0.00030136,120]
[380247013,1755627041930,-500.0,0.00030136,120]
[380247017,1755627041958,-500.0,0.00030136,120]
[380247021,1755627041985,-500.0,0.00030136,120]
[380247025,1755627042012,-3245.58,0.00030136,120]
[380247029,1755627042040,-166.647413,0.00030136,120]
[380247033,1755627042068,-500.0,0.00030136,120]
[380247037,1755627042095,-500.0,0.00030136,120]
[380247041,1755627042123,-500.0,0.00030136,120]
[380247045,1755627042153,-400.0,0.00030136,120]
[380247049,1755627042182,-500.0,0.00030136,120]
[380247053,1755627042211,-400.0,0.00030136,120]
[380247058,1755627042242,-500.0,0.00030136,120]
[380247062,1755627042276,-500.0,0.00030136,120]
[380247067,1755627042307,-500.0,0.00030136,120]
[380247071,1755627042338,-500.0,0.00030136,120]
[380247076,1755627042368,-500.0,0.00030136,120]
[380247080,1755627042400,-500.0,0.00030136,120]
[380247084,1755627042430,-500.0,0.00030136,120]
[380247088,1755627042459,-300.0,0.00030136,120]
[380247092,1755627042488,-500.0,0.00030136,120]
[380247096,1755627042517,-3990.68,0.00030136,120]
[380247100,1755627042548,-500.0,0.00030136,120]
[380247105,1755627042576,-1811.01,0.00030136,120]
[380247108,1755627042605,-400.0,0.00030136,120]
[380247112,1755627042634,-500.0,0.00030136,120]
[380247149,1755627042958,-500.0,0.00030136,120]
[380247153,1755627042987,-500.0,0.00030136,120]
[380247157,1755627043013,-735.71,0.00030136,120]
[380247160,1755627043040,-500.0,0.00030136,120]
[380247165,1755627043068,-164.99955688,0.00030136,120]
[380247171,1755627043096,-501.04638823,0.00030136,120]
[380247175,1755627043124,-400.0,0.00030136,120]
[380247181,1755627043150,-831.15,0.00030136,120]
[380247189,1755627043176,-3516.67,0.00030136,120]
[380247193,1755627043202,-400.0,0.00030136,120]
[380247197,1755627043234,-400.0,0.00030136,120]
[380247201,1755627043260,-629.07,0.00030136,120]
[380247205,1755627043287,-2151.16,0.00030136,120]
[380247209,1755627043314,-4552.97,0.00030136,60]
[380247212,1755627043341,-2813.66,0.00030136,120]
[380247216,1755627043367,-1511.26,0.00030136,120]
[380247220,1755627043393,-570.04,0.00030136,120]
[380247224,1755627043418,-715.13,0.00030136,120]
[380247227,1755627043443,-500.0,0.00030136,120]
[380247231,1755627043468,-500.0,0.00030136,120]
[380247235,1755627043495,-914.14,0.00030136,120]
[380247238,1755627043521,-500.0,0.00030136,120]
[380247242,1755627043551,-500.0,0.00030136,120]
[380247246,1755627043577,-400.0,0.00030136,120]
[380247250,1755627043603,-852.63,0.00030136,120]
[380247253,1755627043629,-500.0,0.00030136,120]
[380247257,1755627043653,-500.0,0.00030136,120]
[380247260,1755627043678,-500.0,0.00030136,120]
[380247264,1755627043703,-500.0,0.00030136,120]
[380247269,1755627043728,-500.0,0.00030136,120]
[380247273,1755627043755,-500.0,0.00030136,120]
[380247276,1755627043782,-500.0,0.00030136,120]
[380247280,1755627043808,-500.0,0.00030136,120]
[380247284,1755627043832,-470.88,0.00030136,120]
[380247287,1755627043856,-500.0,0.00030136,120]
[380247291,1755627043881,-500.0,0.00030136,120]
[380247295,1755627043905,-1599.82,0.00030136,120]
[380247298,1755627043930,-500.0,0.00030136,120]
[380247302,1755627043956,-433.62,0.00030136,120]
[380247306,1755627043985,-500.0,0.00030136,120]
[380247309,1755627044012,-282.15193737,0.00030136,120]
[380247313,1755627044038,-612.79,0.00030136,120]
[380247317,1755627044065,-500.0,0.00030136,120]
[380247321,1755627044092,-766.29,0.00030136,120]
[380247324,1755627044119,-500.0,0.00030136,120]
[380247328,1755627044145,-500.0,0.00030136,120]
[380247332,1755627044171,-400.0,0.00030136,120]
[380247336,1755627044196,-258.331303,0.00030136,120]
[380247339,1755627044223,-500.0,0.00030136,120]
[380247343,1755627044247,-500.0,0.00030136,120]
[380247346,1755627044272,-500.0,0.00030136,120]
[380247350,1755627044298,-500.0,0.00030136,120]
[380247354,1755627044323,-400.0,0.00030136,120]
[380247358,1755627044351,-500.0,0.00030136,120]
[380247361,1755627044376,-788.07,0.00030136,120]
[380247365,1755627044401,-500.0,0.00030136,120]
[380247368,1755627044426,-500.0,0.00030136,120]
[380247372,1755627044451,-3358.06,0.00030136,120]
[380247376,1755627044479,-500.0,0.00030136,120]
[380247379,1755627044504,-500.0,0.00030136,120]
[380247383,1755627044533,-427.69,0.00030136,120]
[380247387,1755627044559,-632.3692108,0.00030136,120]
[380247390,1755627044584,-506.9,0.00030136,120]
[380247394,1755627044610,-400.0,0.00030136,120]
[380247398,1755627044636,-524.7,0.00030136,120]
[380247401,1755627044663,-880.24,0.00030136,120]
[380247405,1755627044689,-400.0,0.00030136,120]
[380247408,1755627044716,-1044.26,0.00030136,120]
[380247412,1755627044741,-400.0,0.00030136,120]
[380247416,1755627044768,-2251.46,0.00030136,120]
[380247419,1755627044793,-400.0,0.00030136,120]
[380247423,1755627044819,-1604.18,0.00030136,120]
[380247427,1755627044845,-400.0,0.00030136,120]
[380247430,1755627044871,-1532.87,0.00030136,120]
[380247434,1755627044898,-472.58,0.00030136,120]
[380247438,1755627044924,-772.96,0.00030136,120]
[380247442,1755627044951,-400.0,0.00030136,120]
[380247446,1755627044979,-1502.58,0.00030136,30]
[380247449,1755627045005,-1502.58,0.00030136,30]
[380247453,1755627045032,-1157.79,0.00030136,120]
[380247457,1755627045060,-1502.58,0.00030136,30]
[380247460,1755627045086,-400.0,0.00030136,120]
[380247464,1755627045115,-1502.58,0.00030136,30]
[380247468,1755627045143,-1502.58,0.00030136,30]
[380247472,1755627045171,-1502.58,0.00030136,30]
[380247475,1755627045196,-400.0,0.00030136,120]
[380247479,1755627045223,-1502.58,0.00030136,30]
[380247483,1755627045249,-1502.58,0.00030136,30]
[380247486,1755627045275,-3565.240262,0.00030136,120]
[380247490,1755627045301,-1502.58,0.00030136,30]
[380247494,1755627045327,-400.0,0.00030136,120]
[380247497,1755627045354,-1502.58,0.00030136,30]
[380247501,1755627045380,-400.0,0.00030136,120]
[380247505,1755627045406,-400.0,0.00030136,120]
[380247508,1755627045432,-1502.58,0.00030136,30]
[380247512,1755627045471,-3095.11,0.00030136,120]
[380247516,1755627045496,-1374.46,0.00030136,120]
[380247520,1755627045524,-1502.58,0.00030136,30]
[380247522,1755627045552,-1502.58,0.00030136,30]
[380247523,1755627045577,-1502.58,0.00030136,30]
[380247524,1755627045602,-1502.58,0.00030136,30]
[380247525,1755627045628,-1340.82,0.00030136,120]
[380247526,1755627045652,-1502.58,0.00030136,30]
[380247529,1755627045676,-1502.58,0.00030136,30]
[380247533,1755627045703,-1502.58,0.00030136,30]
[380247536,1755627045727,-700.74,0.00030136,120]
[380247540,1755627045752,-1502.58,0.00030136,30]
[380247544,1755627045776,-1502.58,0.00030136,30]
[380247548,1755627045801,-1502.58,0.00030136,30]
[380247551,1755627045828,-2327.95,0.00030136,120]
[380247555,1755627045854,-1502.58,0.00030136,30]
[380247560,1755627045890,-1441.79,0.00030136,120]
[380247564,1755627045919,-1502.58,0.00030136,30]
[380247568,1755627045944,-400.0,0.00030136,120]
[380247571,1755627045970,-1502.71002172,0.00030136,30]
[380247575,1755627045996,-2544.99,0.00030136,120]
[380247579,1755627046023,-400.0,0.00030136,120]
[380247583,1755627046050,-716.95,0.00030136,120]
[380247623,1755627046362,-400.81,0.00030136,120]
[380247627,1755627046390,-507.96,0.00030136,120]
[380247631,1755627046416,-2603.77,0.00030136,120]
[380247634,1755627046442,-400.0,0.00030136,120]
[380247638,1755627046467,-400.0,0.00030136,120]
[380247642,1755627046492,-400.0,0.00030136,120]
[380247645,1755627046518,-203.471098,0.00030136,120]
[380247649,1755627046548,-3087.59,0.00030136,120]
[380247653,1755627046574,-1220.45,0.00030136,120]
[380247657,1755627046607,-400.0,0.00030136,120]
[380247661,1755627046633,-2559.22,0.00030136,120]
[380247665,1755627046659,-2631.6,0.00030136,120]
[380247669,1755627046684,-396.64892299,0.00030136,120]
[380247672,1755627046709,-400.0,0.00030136,120]
[380247676,1755627046734,-400.0,0.00030136,120]
[380247680,1755627046759,-400.0,0.00030136,120]
[380247684,1755627046784,-462.51,0.00030136,120]
[380247687,1755627046808,-866.37,0.00030136,120]
[380247692,1755627046839,-400.0,0.00030136,120]
[380247696,1755627046864,-1950.43,0.00030136,120]
[380247699,1755627046890,-4836.11,0.00030136,120]
[380247703,1755627046916,-400.0,0.00030136,120]
[380247707,1755627046941,-1207.2,0.00030136,120]
[380247710,1755627046968,-254.64103,0.00030136,120]
[380247714,1755627046995,-554.06,0.00030136,120]
[380247718,1755627047022,-400.0,0.00030136,120]
[380247722,1755627047048,-1316.89,0.00030136,120]
[380247726,1755627047080,-1480.34,0.00030136,120]
[380247730,1755627047108,-1222.32,0.00030136,120]
[380247734,1755627047136,-1522.37,0.00030136,120]
[380247738,1755627047164,-631.97,0.00030136,120]
[380247742,1755627047192,-400.0,0.00030136,120]
[380247746,1755627047220,-400.0,0.00030136,120]
[380247750,1755627047249,-1200.66,0.00030136,120]
[380247754,1755627047279,-1418.84,0.00030136,120]
[380247758,1755627047321,-660.15,0.00030136,120]
[380247762,1755627047348,-400.0,0.00030136,120]
[380247766,1755627047375,-791.9,0.00030136,120]
[380247770,1755627047401,-1031.58,0.00030136,120]
[380247774,1755627047432,-611.67,0.00030136,120]
[380247778,1755627047460,-904.82,0.00030136,120]
[380247782,1755627047487,-546.58,0.00030136,120]
[380247786,1755627047513,-400.0,0.00030136,120]
[380247790,1755627047542,-400.0,0.00030136,120]
[380247794,1755627047570,-2080.75,0.00030136,120]
[380247797,1755627047596,-400.0,0.00030136,120]
[380247801,1755627047625,-1121.42,0.00030136,120]
[380247805,1755627047652,-400.0,0.00030136,120]
[380247809,1755627047679,-400.0,0.00030136,120]
[380247813,1755627047706,-400.0,0.00030136,120]
[380247817,1755627047734,-400.0,0.00030136,120]
[380247821,1755627047760,-1099.15,0.00030136,120]
[380247825,1755627047786,-400.0,0.00030136,120]
[380247829,1755627047813,-3599.17,0.00030136,120]
[380247832,1755627047839,-1475.58,0.00030136,120]
[380247834,1755627047865,-400.0,0.00030136,120]
[380247835,1755627047891,-2404.32,0.00030136,120]
[380247836,1755627047917,-1120.33,0.00030136,120]
[380247838,1755627047946,-582.24,0.00030136,120]
[380247839,1755627047976,-400.0,0.00030136,120]
[380247842,1755627048004,-400.0,0.00030136,120]
[380247846,1755627048032,-982.01,0.00030136,120]
[380247849,1755627048061,-647.57,0.00030136,120]
[380247853,1755627048090,-3791.15,0.00030136,120]
[380247857,1755627048119,-2800.95,0.00030136,120]
[380247861,1755627048147,-400.0,0.00030136,120]
[380247865,1755627048175,-400.0,0.00030136,120]
[380247869,1755627048204,-400.0,0.00030136,120]
[380247873,1755627048236,-400.0,0.00030136,120]
[380247877,1755627048264,-2642.31,0.00030136,120]
[380247881,1755627048293,-1100.85,0.00030136,120]
[380247884,1755627048325,-400.0,0.00030136,120]
[380247885,1755627048354,-400.0,0.00030136,120]
[380247886,1755627048383,-400.0,0.00030136,120]
[380247888,1755627048412,-400.0,0.00030136,120]
[380247891,1755627048441,-500.0,0.00030136,120]
[380247892,1755627048469,-688.75,0.00030136,120]
[380247893,1755627048497,-500.0,0.00030136,120]
[380247894,1755627048529,-500.0,0.00030136,120]
[380247895,1755627048567,-500.0,0.00030136,120]
[380247896,1755627048600,-500.0,0.00030136,120]
[380247899,1755627048630,-500.0,0.00030136,120]
[380247903,1755627048661,-500.0,0.00030136,120]
[380247907,1755627048691,-1932.61,0.00030136,120]
[380247909,1755627048720,-500.0,0.00030136,120]
[380247910,1755627048749,-2004.02,0.00030136,120]
[380247911,1755627048778,-500.0,0.00030136,120]
[380247912,1755627048808,-500.0,0.00030136,120]
[380247916,1755627048838,-400.0,0.00030136,120]
[380247918,1755627048867,-446.46,0.00030136,120]
[380247921,1755627048902,-400.0,0.00030136,120]
[380247923,1755627048933,-500.0,0.00030136,120]
[380247924,1755627048962,-500.0,0.00030136,120]
[380247929,1755627049596,-503.12419847,0.00030136,120]
[380247930,1755627049629,-425.06,0.00030136,120]
[380247931,1755627049654,-500.0,0.00030136,120]
[380247932,1755627049678,-500.0,0.00030136,120]
[380247933,1755627049703,-500.0,0.00030136,120]
[380247934,1755627049729,-2627.3,0.00030136,120]
[380247935,1755627049753,-400.0,0.00030136,120]
[380247936,1755627049778,-500.0,0.00030136,120]
[380247937,1755627049803,-756.45,0.00030136,120]
[380247938,1755627049828,-400.0,0.00030136,120]
[380247939,1755627049852,-618.91,0.00030136,120]
[380247940,1755627049877,-400.0,0.00030136,120]
[380247941,1755627049902,-400.0,0.00030136,120]
[380247942,1755627049927,-404.27229712,0.00030136,120]
[380247943,1755627049953,-1075.54,0.00030136,120]
[380247944,1755627049977,-2544.91,0.00030136,120]
[380247945,1755627050001,-400.0,0.00030136,60]
[380247946,1755627050026,-779.83,0.00030136,120]
[380247947,1755627050051,-1087.82,0.00030136,120]
[380247948,1755627050076,-400.0,0.00030136,120]
[380247949,1755627050101,-651.37,0.00030136,120]
[380247950,1755627050126,-581.58,0.00030136,120]
[380247951,1755627050150,-400.0,0.00030136,120]
[380247952,1755627050175,-874.82,0.00030136,120]
[380247953,1755627050199,-400.0,0.00030136,120]
[380247954,1755627050224,-769.94,0.00030136,120]
[380247955,1755627050249,-964.73,0.00030136,120]
[380247956,1755627050274,-2127.98,0.00030136,120]
[380247957,1755627050298,-792.33,0.00030136,120]
[380247958,1755627050322,-567.57,0.00030136,120]
[380247959,1755627050348,-2482.49,0.00030136,120]
[380247960,1755627050372,-400.0,0.00030136,120]
[380247961,1755627050397,-400.0,0.00030136,120]
[380247962,1755627050422,-713.048053,0.00030136,120]
[380247963,1755627050449,-1960.17,0.00030136,120]
[380247964,1755627050474,-1231.19,0.00030136,120]
[380247965,1755627050499,-1746.44,0.00030136,120]
[380247966,1755627050525,-426.17,0.00030136,120]
[380247967,1755627050551,-400.0,0.00030136,120]
[380247968,1755627050576,-2275.93,0.00030136,120]
[380247969,1755627050600,-2908.63,0.00030136,120]
[380247970,1755627050625,-3160.26,0.00030136,120]
[380247971,1755627050649,-2846.12,0.00030136,120]
[380247972,1755627050673,-400.0,0.00030136,120]
[380247973,1755627050699,-1384.64,0.00030136,120]
[380247974,1755627050725,-2503.37,0.00030136,120]
[380247975,1755627050750,-610.49,0.00030136,120]
[380247976,1755627050775,-2533.61,0.00030136,120]
[380247977,1755627050800,-1845.75,0.00030136,120]
[380247978,1755627050825,-1474.49,0.00030136,120]
[380247979,1755627050850,-400.0,0.00030136,120]
[380247980,1755627050875,-560.59,0.00030136,120]
[380247981,1755627050900,-400.0,0.00030136,120]
[380247982,1755627050924,-993.51,0.00030136,120]
[380247983,1755627050950,-3451.14,0.00030136,120]
[380247984,1755627050976,-412.61232615,0.00030136,120]
[380247985,1755627051002,-2187.5,0.00030136,120]
[380247986,1755627051029,-893.62,0.00030136,120]
[380247987,1755627051058,-3837.19,0.00030136,120]
[380247988,1755627051085,-980.55,0.00030136,120]
[380247989,1755627051113,-500.09,0.00030136,120]
[380247990,1755627051139,-581.66,0.00030136,120]
[380247991,1755627051166,-400.0,0.00030136,120]
[380247992,1755627051193,-966.54,0.00030136,120]
[380247993,1755627051219,-400.0,0.00030136,120]
[380247994,1755627051245,-400.0,0.00030136,120]
[380247995,1755627051272,-1046.3,0.00030136,120]
[380247996,1755627051297,-3544.08,0.00030136,120]
[380247997,1755627051322,-268.88601972,0.00030136,120]
[380247998,1755627051347,-252.17853466,0.00030136,120]
[380247999,1755627051371,-861.78,0.00030136,120]
[380248000,1755627051398,-1673.15,0.00030136,120]
[380248001,1755627051423,-1186.35,0.00030136,120]
[380248002,1755627051447,-2502.9,0.00030136,120]
[380248003,1755627051473,-425.07,0.00030136,120]
[380248004,1755627051500,-2967.36,0.00030136,120]
[380248005,1755627051528,-2589.57,0.00030136,120]
[380248006,1755627051554,-400.0,0.00030136,120]
[380248007,1755627051703,-400.0,0.00030136,120]
[380248008,1755627051731,-400.0,0.00030136,120]
[380248009,1755627051756,-1754.75,0.00030136,120]
[380248010,1755627051780,-400.0,0.00030136,120]
[380248011,1755627051804,-424.76,0.00030136,120]
[380248012,1755627051828,-400.0,0.00030136,120]
[380248013,1755627051852,-2442.67,0.00030136,120]
[380248014,1755627051876,-835.69,0.00030136,120]
[380248015,1755627051903,-1486.63,0.00030136,120]
[380248016,1755627051927,-503.95,0.00030136,120]
[380248017,1755627051951,-442.09,0.00030136,120]
[380248018,1755627051976,-1946.5,0.00030136,120]
[380248019,1755627052001,-3383.7,0.00030136,120]
[380248020,1755627052025,-619.8,0.00030136,120]
[380248021,1755627052049,-483.67,0.00030136,120]
[380248022,1755627052073,-871.46,0.00030136,120]
[380248023,1755627052097,-1784.69,0.00030136,60]
[380248024,1755627052121,-400.0,0.00030136,120]
[380248025,1755627052146,-400.0,0.00030136,120]
[380248026,1755627052170,-400.0,0.00030136,120]
[380248027,1755627052194,-1618.62,0.00030136,120]
[380248028,1755627052219,-457.2,0.00030136,120]
[380248029,1755627052244,-852.11,0.00030136,120]
[380248030,1755627052268,-400.0,0.00030136,120]
[380248031,1755627052292,-1217.85,0.00030136,120]
[380248032,1755627052317,-2865.61,0.00030136,120]
[380248033,1755627052342,-2371.79,0.00030136,120]
[380248034,1755627052368,-2589.08,0.00030136,120]
[380248035,1755627052393,-812.17,0.00030136,120]
[380248036,1755627052418,-7442.7,0.00030136,120]
[380248037,1755627052443,-425.37,0.00030136,120]
[380248038,1755627052467,-400.0,0.00030136,120]
[380248039,1755627052491,-504.06,0.00030136,120]
[380248040,1755627052516,-250.0,0.00030136,120]
[380248041,1755627052544,-400.0,0.00030136,120]
[380248042,1755627052568,-540.35,0.00030136,120]
[380248043,1755627052593,-400.0,0.00030136,120]
[380248044,1755627052618,-592.68,0.00030136,120]
[380248045,1755627052643,-400.0,0.00030136,120]
[380248046,1755627052673,-400.0,0.00030136,120]
[380248047,1755627052700,-558.43,0.00030136,120]
[380248048,1755627052725,-400.0,0.00030136,120]
[380248049,1755627052751,-3140.37,0.00030136,120]
[380248050,1755627052775,-3865.27,0.00030136,120]
[380248051,1755627052800,-400.0,0.00030136,120]